bitfinex-derivatives/quotes_SOLF0:USTF0_20260129
["timestamp","ask_amount","ask_price","bid_price","bid_amount"]
[1769699307424,139.38514755,119.1,118.99,21.93297146]
[1769699308226,7.5701,119.09,118.99,21.93297146]
[1769699308723,7.5719,119.06,118.97,21.93297146]
[1769699309224,21.63794755,119.04,118.93,21.93297146]
[1769699309824,21.63794755,119.04,118.95,7.5785]
[1769699310323,7.574,119.03,118.94,21.93297146]
[1769699310719,21.63794755,119.04,118.94,21.93297146]
[1769699310919,7.5737,119.03,118.94,21.93297146]
[1769699311120,21.63794755,119.04,118.94,21.93297146]
[1769699312024,21.63794755,119.04,118.95,29.51127146]
[1769699312220,7.572,119.06,118.96,21.93297146]
[1769699312422,7.5728,119.05,118.96,21.93297146]
[1769699312929,22.80956007,119.06,118.96,21.93297146]
[1769699313127,30.38136007,119.06,118.96,29.51087146]
[1769699313330,30.38136007,119.06,118.96,21.93297146]
[1769699313630,22.80956007,119.06,118.96,21.93297146]
[1769699314328,7.5724,119.05,118.96,21.93297146]
[1769699314524,22.80956007,119.06,118.96,21.93297146]
[1769699314918,7.5733,119.04,118.96,21.93297146]
[1769699315315,22.80956007,119.02,118.93,21.83959872]
[1769699316119,22.80956007,119.02,118.93,139.74669872]
[1769699316420,22.80956007,119.05,118.94,21.83959872]
[1769699316716,22.80956007,119.05,118.96,29.41729872]
[1769699316915,29.54607566,119.08,118.96,21.83959872]
[1769699317125,22.80956007,119.07,118.96,21.83959872]
[1769699317315,22.80956007,119.07,118.94,7.5787]
[1769699317316,6.73651559,119.04,118.94,7.5787]
[1769699317521,22.80956007,119.03,118.94,7.5787]
[1769699317717,22.80956007,119.03,118.93,21.83959872]
[1769699317917,22.80956007,119.08,118.96,21.83959872]
[1769699318121,22.80956007,119.08,118.95,117.8878]
[1769699318122,6.73651559,119.04,118.93,21.83959872]
[1769699318327,29.54607566,119.04,118.93,21.83959872]
[1769699318526,22.80956007,119.03,118.93,21.83959872]
[1769699319325,22.80956007,119.03,118.94,21.83959872]
[1769699319524,22.80956007,119.05,118.94,21.83959872]
[1769699319924,22.80956007,119.05,118.95,7.5785]
[1769699320121,22.80956007,119.03,118.94,21.83959872]
[1769699320529,7.5743,119.02,118.94,21.83959872]
[1769699320931,22.80956007,119.03,118.94,21.83959872]
[1769699321132,30.38316007,119.03,118.94,29.41879872]
[1769699321327,22.80956007,119.06,118.96,21.83959872]
[1769699322337,7.5725,119.05,118.96,29.41699872]
[1769699322729,22.80956007,119.05,118.96,21.83959872]
[1769699322929,22.80956007,119.05,118.94,301.6]
[1769699323131,7.5736,119.03,118.95,7.5786]
[1769699323332,22.80956007,119.01,118.9,21.83959872]
[1769699323537,6.73651559,119.0,118.9,21.83959872]
[1769699323736,29.54607566,119.0,118.9,21.83959872]
[1769699324736,29.54607566,119.0,118.91,7.5811]
[1769699324928,117.8051,119.04,118.92,21.83959872]
[1769699324929,22.80956007,119.04,118.92,21.83959872]
[1769699325134,22.80956007,119.04,118.93,21.83959872]
[1769699325333,7.5736,119.03,118.93,21.83959872]
[1769699325536,22.80956007,119.04,118.93,21.83959872]
[1769699325838,22.80956007,119.04,118.94,21.83959872]
[1769699326036,30.38256007,119.04,118.94,21.83959872]
[1769699326431,22.80956007,119.04,118.94,21.83959872]
[1769699326736,22.80956007,119.04,118.95,301.32]
[1769699327133,22.80956007,119.03,118.94,21.83959872]
[1769699327336,22.80956007,119.03,118.92,7.5801]
[1769699327337,22.80956007,119.02,118.92,7.5801]
[1769699327939,22.80956007,119.01,118.91,21.83959872]
[1769699328740,22.80956007,119.15,119.03,21.83959872]
[1769699328927,22.80956007,119.15,119.02,117.8191]
[1769699328928,140.50526007,119.15,119.05,28.57611431]
[1769699329129,22.80956007,119.15,119.05,28.57611431]
[1769699329332,22.80956007,119.18,119.08,6.73651559]
[1769699329839,7.5655,119.16,119.08,307.95651559]
[1769699330738,140.47626007,119.18,119.07,301.48]
[1769699330739,7.5662,119.15,119.07,301.48]
[1769699330940,7.5662,119.15,119.06,21.83959872]
[1769699330941,22.80956007,119.15,119.06,301.56]
[1769699331141,22.80956007,119.15,119.06,301.66]
[1769699331335,7.5667,119.14,119.06,301.66]
[1769699331641,22.80956007,119.15,119.06,323.49959872]
[1769699332339,22.80956007,119.13,119.02,21.83959872]
[1769699332537,22.80956007,119.13,119.03,302.3]
[1769699332846,22.80956007,119.16,119.06,139.61819872]
[1769699333149,22.80956007,119.16,119.06,21.83959872]
[1769699333529,7.5662,119.15,119.06,29.41099872]
[1769699333736,30.37576007,119.15,119.06,21.83959872]
[1769699334138,30.37576007,119.15,119.0,250.8242]
[1769699334139,7.5747,119.02,118.94,302.24]
[1769699334437,22.80956007,119.07,118.95,117.8905]
[1769699334642,22.80956007,119.07,118.96,117.8795]
[1769699334840,22.80956007,119.07,118.94,420.1354]
[1769699335029,22.80956007,119.1,118.95,144.13320414]
[1769699335233,22.80956007,119.09,118.95,117.8883]
[1769699336042,7.5705,119.08,118.96,22.95696547]
[1769699336539,7.5711,119.07,118.96,22.95696547]
[1769699336739,139.59095199,119.06,118.96,22.95696547]
[1769699336938,21.80635199,119.04,118.93,326.31696547]
[1769699338147,139.62105199,119.03,118.93,326.31696547]
[1769699338443,139.62835199,119.02,118.93,326.31696547]
[1769699338640,21.80635199,119.0,118.9,22.95696547]
[1769699339744,139.66025199,118.99,118.9,22.95696547]
[1769699339943,139.67815199,118.97,118.89,303.52]
[1769699340143,139.69765199,118.95,118.86,22.95696547]
[1769699340342,7.5796,118.94,118.86,22.95696547]
[1769699340548,117.9216,118.92,118.82,22.95696547]
[1769699340748,117.8913,118.95,118.83,22.95696547]
[1769699340941,117.9061,118.94,118.83,22.95696547]
[1769699341248,117.9105,118.93,118.83,22.95696547]
[1769699341641,117.9306,118.91,118.83,22.95696547]
[1769699341846,117.9408,118.9,118.79,288.89696547]
[1769699342047,117.9624,118.88,118.79,22.95696547]
[1769699342540,139.76055199,118.89,118.79,22.95696547]
[1769699342850,21.80635199,118.89,118.79,22.95696547]
[1769699343349,471.5641,118.95,118.83,22.95696547]
[1769699343350,117.8914,118.95,118.83,22.95696547]
[1769699343534,139.73785199,118.91,118.8,22.95696547]
[1769699343740,139.74815199,118.9,118.8,326.21696547]
[1769699344344,7.5829,118.89,118.8,326.21696547]
[1769699344545,7.5829,118.89,118.77,7.5896]
[1769699344546,117.9819,118.86,118.76,49.20186961]
[1769699344741,118.0,118.84,118.76,22.95696547]
[1769699344942,21.80635199,118.83,118.73,22.95696547]
[1769699345340,117.9724,118.87,118.73,22.95696547]
[1769699345341,139.78655199,118.86,118.74,22.95696547]
[1769699345540,29.39085199,118.86,118.74,22.95696547]
[1769699345741,147.37225199,118.86,118.74,22.95696547]
[1769699345941,118.0011,118.84,118.74,22.95696547]
[1769699346347,118.0307,118.81,118.7,49.20186961]
[1769699346542,21.80635199,118.82,118.72,22.95696547]
[1769699347644,147.38485199,118.85,118.72,22.95696547]
[1769699347842,139.81705199,118.83,118.72,22.95696547]
[1769699348044,21.80635199,118.83,118.72,22.95696547]
[1769699348738,21.80635199,118.82,118.72,22.95696547]
[1769699348940,21.80635199,118.82,118.68,62.0]
[1769699348941,139.83645199,118.81,118.69,22.95696547]
[1769699349242,21.80635199,118.81,118.7,326.63696547]
[1769699349440,21.80635199,118.81,118.71,22.95696547]
[1769699349743,21.80635199,118.85,118.74,22.95696547]
[1769699349946,139.75715199,118.89,118.75,22.95696547]
[1769699350142,21.80635199,118.88,118.75,22.95696547]
[1769699350338,21.80635199,118.88,118.77,22.95696547]
[1769699350339,29.38965199,118.88,118.77,22.95696547]
[1769699350545,29.38965199,118.88,118.78,303.66]
[1769699350745,29.38965199,118.88,118.77,22.95696547]
[1769699350945,29.38965199,118.88,118.78,326.63696547]
[1769699351352,29.38965199,118.88,118.79,22.95696547]
[1769699351353,21.80635199,118.88,118.79,22.95696547]
[1769699351550,7.5819,118.9,118.79,22.95696547]
[1769699351945,147.32875199,118.9,118.79,22.95696547]
[1769699352247,21.80635199,118.89,118.79,326.77696547]
[1769699352455,21.80635199,118.89,118.8,22.95696547]
[1769699352959,21.80635199,118.88,118.77,7.5898]
[1769699353149,21.80635199,118.86,118.74,141.05246547]
[1769699353355,21.80635199,118.86,118.75,22.95696547]
[1769699353548,21.80635199,118.86,118.75,141.04566547]
[1769699353850,21.80635199,118.84,118.73,303.9]
[1769699354046,21.80635199,118.84,118.68,84.95696547]
[1769699354047,21.80635199,118.79,118.68,84.95696547]
[1769699354353,21.80635199,118.78,118.68,22.95696547]
[1769699354553,139.86815199,118.78,118.68,22.95696547]
[1769699354756,21.80635199,118.76,118.65,326.85696547]
[1769699354955,139.84635199,118.8,118.67,22.95696547]
[1769699355155,118.021,118.82,118.7,22.95696547]
[1769699355345,139.84185199,118.81,118.71,22.95696547]
[1769699355551,21.80635199,118.8,118.68,22.95696547]
[1769699355745,21.80635199,118.77,118.66,22.95696547]
[1769699355951,118.0514,118.79,118.68,22.95696547]
[1769699356153,139.84185199,118.81,118.68,22.95696547]
[1769699357050,125.6307,118.8,118.68,22.95696547]
[1769699357355,139.84855199,118.8,118.7,22.95696547]
[1769699357553,118.1013,118.74,118.66,22.95696547]
[1769699357859,118.1511,118.69,118.61,5.214803]
[1769699358151,118.1414,118.7,118.61,28.17176847]
[1769699358354,29.39955199,118.73,118.61,28.17176847]
[1769699358655,21.80635199,118.71,118.61,90.17176847]
[1769699358861,139.94005199,118.71,118.61,28.17176847]
[1769699359251,21.80635199,118.7,118.61,5.214803]
[1769699359456,139.94865199,118.7,118.61,5.214803]
[1769699359758,21.80635199,118.7,118.61,5.214803]
[1769699360356,16.94635199,118.7,118.61,5.214803]
[1769699360756,118.1038,118.74,118.61,28.17176847]
[1769699360953,118.1038,118.74,118.62,22.95696547]
[1769699361154,118.1435,118.7,118.61,5.214803]
[1769699361459,118.1375,118.71,118.61,5.214803]
[1769699361653,118.1508,118.69,118.61,5.214803]
[1769699361956,118.1375,118.71,118.61,5.214803]
[1769699362259,21.80635199,118.68,118.61,5.214803]
[1769699362855,139.97855199,118.67,118.61,1.96554807]
[1769699363157,21.80635199,118.66,118.61,4.807e-05]
[1769699364156,21.80635199,118.7,118.61,4.807e-05]
[1769699364564,139.95115199,118.7,118.61,4.807e-05]
[1769699364760,21.80635199,118.67,118.61,4.807e-05]
[1769699365465,17.18501173,118.66,118.61,4.807e-05]
[1769699365662,135.36801173,118.66,118.61,4.807e-05]
[1769699365863,17.18501173,118.62,118.51,17.79811451]
[1769699366053,17.18501173,118.61,118.46,118.3705]
[1769699366258,17.18501173,118.59,118.48,17.79811451]
[1769699366562,294.72451173,118.63,118.51,17.79811451]
[1769699366860,144.57648901,118.67,118.55,136.08631451]
[1769699366861,287.10501173,118.67,118.55,136.08631451]
[1769699367066,17.18501173,118.65,118.54,136.09281451]
[1769699367362,17.18501173,118.69,118.58,17.79811451]
[1769699367558,17.18501173,118.69,118.55,44.20320352]
[1769699367761,118.1423,118.7,118.55,17.79811451]
[1769699367762,17.18501173,118.67,118.55,17.79811451]
[1769699367971,24.78161173,118.67,118.55,17.79811451]
[1769699368263,17.18501173,118.67,118.57,17.79811451]
[1769699368765,135.35391173,118.67,118.57,17.79811451]
[1769699369063,17.18501173,118.66,118.55,17.79811451]
[1769699369961,24.78321173,118.65,118.55,17.79811451]
[1769699370154,24.78321173,118.65,118.49,118.3462]
[1769699370155,135.39381173,118.63,118.5,17.79811451]
[1769699370361,118.2407,118.6,118.5,17.79811451]
[1769699370567,7.6027,118.58,118.47,17.79811451]
[1769699370763,118.2691,118.57,118.47,17.79811451]
[1769699370964,7.6046,118.55,118.44,321.83811451]
[1769699371154,17.18501173,118.56,118.44,321.83811451]
[1769699371359,17.18501173,118.6,118.47,17.79811451]
[1769699371555,7.6001,118.62,118.51,17.79811451]
[1769699371961,17.18501173,118.6,118.5,62.0]
[1769699372161,17.18501173,118.6,118.49,17.79811451]
[1769699372762,16.82328669,118.58,118.47,15.66054627]
[1769699373161,16.82328669,118.62,118.51,15.66054627]
[1769699373362,135.00788669,118.66,118.52,15.66054627]
[1769699373664,118.169,118.67,118.52,15.66054627]
[1769699373665,24.42268669,118.63,118.52,23.26634627]
[1769699374070,135.03408669,118.63,118.52,15.66054627]
[1769699374260,16.82328669,118.62,118.52,15.66054627]
[1769699374966,24.42318669,118.62,118.52,15.66054627]
[1769699375364,118.2007,118.64,118.52,15.66054627]
[1769699375365,16.82328669,118.64,118.52,15.66054627]
[1769699375670,118.2088,118.63,118.52,15.66054627]
[1769699376371,24.42388669,118.61,118.5,62.0]
[1769699376671,16.82328669,118.59,118.49,15.66054627]
[1769699377166,135.07408669,118.59,118.49,15.66054627]
[1769699377468,16.82328669,118.55,118.45,15.66054627]
[1769699377669,135.11618669,118.55,118.45,15.66054627]
[1769699377867,7.6062,118.52,118.42,7.6123]
[1769699378170,7.6062,118.52,118.37,118.4658]
[1769699378171,16.82328669,118.5,118.37,15.66054627]
[1769699378372,16.82328669,118.48,118.37,134.12864627]
[1769699378969,16.82328669,118.52,118.41,118.4246]
[1769699379162,16.82328669,118.52,118.42,6.79335552]
[1769699379363,16.82328669,118.5,118.4,15.66054627]
[1769699379563,7.6085,118.49,118.4,15.66054627]
[1769699379764,16.82328669,118.5,118.39,118.4477]
[1769699380065,118.311,118.53,118.41,22.45390179]
[1769699380066,135.13368669,118.53,118.41,22.45390179]
[1769699380272,21.99978669,118.52,118.41,22.45390179]
[1769699380565,16.82328669,118.52,118.42,134.07884627]
[1769699380763,253.33528669,118.59,118.47,6.79335552]
[1769699380970,253.33528669,118.59,118.47,22.45390179]
[1769699380971,16.82328669,118.58,118.47,22.45390179]
[1769699381169,24.42558669,118.58,118.48,7.6084]
[1769699381365,16.82328669,118.62,118.51,133.98744627]
[1769699381572,16.82328669,118.62,118.51,15.66054627]
[1769699381973,16.82328669,118.62,118.53,6.79335552]
[1769699382270,16.82328669,118.62,118.51,22.45390179]
[1769699382469,16.82328669,118.62,118.54,6.79335552]
[1769699382658,23.61664221,118.59,118.48,15.66054627]
[1769699382862,118.2311,118.61,118.49,15.66054627]
[1769699383067,7.6006,118.61,118.49,15.66054627]
[1769699383264,16.82328669,118.63,118.52,22.45390179]
[1769699383572,7.6001,118.62,118.53,303.24]
[1769699384066,118.2314,118.61,118.52,318.96054627]
[1769699384268,118.2429,118.6,118.49,319.10054627]
[1769699384663,118.2429,118.6,118.49,325.89390179]
[1769699384859,7.602,118.59,118.49,22.45390179]
[1769699385064,7.602,118.59,118.46,62.0]
[1769699385065,118.2708,118.57,118.47,223.74]
[1769699385662,118.2886,118.55,118.46,15.66054627]
[1769699385973,16.82328669,118.57,118.47,15.66054627]
[1769699386174,16.82328669,118.57,118.46,303.62]
[1769699386175,118.2914,118.55,118.46,303.58]
[1769699386369,118.3196,118.52,118.43,15.66054627]
[1769699386870,135.11468669,118.55,118.4,105.44]
[1769699386871,118.2823,118.56,118.45,15.66054627]
[1769699387670,7.6038,118.56,118.45,15.66054627]
[1769699387876,134.11762576,118.57,118.45,15.66054627]
[1769699388271,134.11762576,118.57,118.46,178.85410053]
[1769699388573,15.84742576,118.57,118.46,178.85410053]
[1769699388770,118.2496,118.59,118.48,15.05410053]
[1769699389074,7.6026,118.58,118.48,292.37410053]
[1769699389271,118.2802,118.56,118.46,303.26]
[1769699389463,134.10912576,118.58,118.46,318.31410053]
[1769699389773,141.71152576,118.58,118.47,15.05410053]
[1769699390377,125.8724,118.57,118.47,15.05410053]
[1769699390568,141.71982576,118.57,118.47,15.05410053]
[1769699390769,134.13182576,118.56,118.43,15.05410053]
[1769699390965,118.269,118.57,118.43,15.05410053]
[1769699391168,134.08912576,118.6,118.46,15.05410053]
[1769699391570,7.6019,118.59,118.46,15.05410053]
[1769699392167,125.8618,118.58,118.46,15.05410053]
[1769699392373,118.2692,118.57,118.46,15.05410053]
[1769699392570,15.84742576,118.58,118.46,15.05410053]
[1769699392772,7.6012,118.6,118.48,15.05410053]
[1769699393171,134.14682576,118.54,118.41,15.05410053]
[1769699393368,23.45272576,118.54,118.41,15.05410053]
[1769699393874,118.2792,118.56,118.42,15.05410053]
[1769699394268,134.11882576,118.57,118.42,15.05410053]
[1769699394473,7.6039,118.56,118.44,15.05410053]
[1769699395279,7.6039,118.56,118.45,15.1984015]
[1769699396775,14.67293505,118.61,118.47,15.1984015]
[1769699397078,14.67293505,118.6,118.47,15.1984015]
[1769699397290,14.67293505,118.58,118.47,15.1984015]
[1769699397579,14.67293505,118.57,118.47,15.1984015]
[1769699397768,132.94373505,118.57,118.47,15.1984015]
[1769699398078,132.94373505,118.57,118.39,17.68438987]
[1769699398079,7.6047,118.55,118.39,17.68438987]
[1769699398279,132.97413505,118.54,118.44,15.1984015]
[1769699398580,132.99193505,118.52,118.41,15.1984015]
[1769699398877,22.27943505,118.52,118.41,15.1984015]
[1769699399584,7.6071,118.51,118.41,15.1984015]
[1769699399772,7.6071,118.51,118.41,77.1984015]
[1769699400280,14.67293505,118.52,118.42,15.1984015]
[1769699400581,14.67293505,118.5,118.39,15.1984015]
[1769699400882,14.67293505,118.48,118.37,15.1984015]
[1769699401581,7.6095,118.47,118.37,15.1984015]
[1769699401881,118.333,118.51,118.37,15.1984015]
[1769699402085,14.67293505,118.54,118.4,15.1984015]
[1769699402382,14.67293505,118.5,118.4,15.1984015]
[1769699402583,118.359,118.48,118.37,15.1984015]
[1769699402780,133.02413505,118.49,118.37,15.1984015]
[1769699402981,133.04163505,118.47,118.37,15.1984015]
[1769699403275,7.6109,118.45,118.37,15.1984015]
[1769699404281,22.28383505,118.45,118.35,174.14772059]
[1769699404478,22.28383505,118.45,118.35,189.34612209]
[1769699404676,14.67293505,118.45,118.35,189.34612209]
[1769699405078,14.67293505,118.45,118.35,20.46612209]
[1769699405286,133.00363505,118.51,118.36,15.1984015]
[1769699405473,14.67293505,118.5,118.36,15.1984015]
[1769699405787,14.67293505,118.49,118.36,15.1984015]
[1769699406081,14.67293505,118.47,118.36,15.1984015]
[1769699406585,133.05733505,118.46,118.36,15.1984015]
[1769699406979,7.6116,118.44,118.36,15.1984015]
[1769699407382,14.67293505,118.46,118.36,15.1984015]
[1769699407980,14.67293505,118.5,118.36,15.1984015]
[1769699408187,14.67293505,118.5,118.37,317.6384015]
[1769699408188,14.67293505,118.48,118.37,317.6384015]
[1769699408393,14.67293505,118.48,118.38,15.1984015]
[1769699408885,7.6097,118.47,118.38,15.1984015]
[1769699409186,133.05153505,118.46,118.35,5.26772059]
[1769699409386,133.09163505,118.42,118.35,5.26772059]
[1769699409587,14.67293505,118.36,118.35,2.059e-05]
[1769699409787,133.15623505,118.36,118.28,0.25363544]
[1769699410086,14.67293505,118.33,118.22,131.62]
[1769699410291,14.67293505,118.31,118.22,131.62]
[1769699410491,14.67293505,118.31,118.2,15.1984015]
[1769699410686,14.67293505,118.34,118.2,15.1984015]
[1769699410893,14.67293505,118.33,118.2,15.1984015]
[1769699411089,133.19403505,118.32,118.2,15.1984015]
[1769699411386,118.5606,118.28,118.17,15.1984015]
[1769699411587,22.29323505,118.3,118.17,15.1984015]
[1769699411991,133.22673505,118.29,118.17,15.1984015]
[1769699412189,140.84823505,118.29,118.17,15.1984015]
[1769699412486,118.5405,118.3,118.09,5.32063818]
[1769699412487,118.6093,118.23,118.13,15.1984015]
[1769699412698,14.67293505,118.21,118.1,15.1984015]
[1769699412886,133.30593505,118.21,118.1,15.1984015]
[1769699413191,126.2343,118.23,118.1,15.1984015]
[1769699413394,14.67293505,118.22,118.1,15.1984015]
[1769699413589,14.67293505,118.21,118.1,15.1984015]
[1769699413790,133.30423505,118.21,118.1,15.1984015]
[1769699413991,133.32533505,118.19,118.09,5.32063818]
[1769699414192,14.67293505,118.18,118.09,5.32063818]
[1769699414496,118.6252,118.22,118.09,20.51903968]
[1769699414497,14.67293505,118.22,118.09,20.51903968]
[1769699414693,14.67293505,118.19,118.09,5.32063818]
[1769699414896,133.35433505,118.16,118.09,5.32063818]
[1769699415096,14.67293505,118.15,118.09,5.32063818]
[1769699415295,22.30063505,118.19,118.09,5.32063818]
[1769699415496,14.67293505,118.23,118.1,15.1984015]
[1769699415793,14.67293505,118.22,118.11,77.1984015]
[1769699416001,14.67293505,118.22,118.11,15.1984015]
[1769699416299,14.67293505,118.26,118.16,15.1984015]
[1769699416498,14.67293505,118.26,118.15,6.82786683]
[1769699416499,14.67293505,118.3,118.18,15.1984015]
[1769699416795,14.67293505,118.3,118.19,15.1984015]
[1769699417090,14.67293505,118.3,118.2,15.1984015]
[1769699417298,118.4948,118.35,118.21,22.02626833]
[1769699417495,118.4985,118.34,118.22,15.1984015]
[1769699417696,6.82786683,118.38,118.25,6.82786683]
[1769699417897,118.4505,118.39,118.26,15.1984015]
[1769699418195,118.4406,118.4,118.21,118.626]
[1769699418196,126.0546,118.4,118.28,15.1984015]
[1769699418700,125.21886683,118.45,118.31,15.1984015]
[1769699418898,118.3904,118.45,118.33,15.1984015]
[1769699419097,6.82786683,118.38,118.25,15.1984015]
[1769699419296,6.82786683,118.36,118.25,15.1984015]
[1769699419693,118.4615,118.38,118.25,15.1984015]
[1769699419889,136.17873742,118.4,118.25,15.1984015]
[1769699420096,136.17873742,118.4,118.27,29.76911542]
[1769699420400,143.79153742,118.4,118.27,29.76911542]
[1769699420596,126.0545,118.4,118.27,29.76911542]
[1769699420792,118.4621,118.38,118.27,29.76911542]
[1769699420989,136.17763742,118.4,118.27,29.76911542]
[1769699421692,118.4504,118.39,118.27,29.76911542]
[1769699421888,118.4665,118.38,118.27,29.76911542]
[1769699422397,7.6152,118.38,118.27,29.76911542]
[1769699422597,118.3995,118.44,118.27,29.76911542]
[1769699422896,118.3995,118.44,118.31,29.76911542]
[1769699423289,118.4114,118.43,118.31,29.76911542]
[1769699423692,118.4206,118.42,118.31,29.76911542]
[1769699423895,118.4306,118.41,118.31,29.76911542]
[1769699424496,126.0439,118.41,118.31,29.76911542]
[1769699424696,118.4114,118.43,118.31,29.76911542]
[1769699425100,118.3685,118.47,118.31,29.76911542]
[1769699425507,118.3585,118.48,118.34,29.76911542]
[1769699425691,118.3812,118.46,118.34,29.76911542]
[1769699426003,118.3903,118.45,118.34,29.76911542]
[1769699426199,118.4215,118.42,118.34,29.76911542]
[1769699426398,118.4408,118.4,118.31,29.76911542]
[1769699426598,118.4391,118.4,118.31,29.76911542]
[1769699426796,118.4705,118.37,118.27,29.76911542]
[1769699427001,118.4286,118.41,118.27,29.76911542]
[1769699427300,126.0554,118.4,118.27,29.76911542]
[1769699427499,118.45,118.39,118.27,29.76911542]
[1769699427711,7.6149,118.39,118.27,29.76911542]
[1769699428095,118.4702,118.37,118.27,29.76911542]
[1769699428305,118.4918,118.35,118.23,29.76911542]
[1769699428501,136.18683742,118.39,118.23,29.76911542]
[1769699428804,118.4732,118.37,118.23,29.76911542]
[1769699429500,7.6158,118.37,118.23,29.76911542]
[1769699429699,118.4498,118.39,118.23,29.76911542]
[1769699430004,7.6147,118.39,118.25,29.76911542]
[1769699430194,7.6147,118.39,118.19,118.6468]
[1769699430195,118.5,118.34,118.2,29.76911542]
[1769699430402,118.5104,118.33,118.2,29.76911542]
[1769699430600,126.1379,118.32,118.2,29.76911542]
[1769699431199,126.1624,118.3,118.2,29.76911542]
[1769699431405,118.5421,118.3,118.2,29.76911542]
[1769699432006,118.5185,118.32,118.2,29.76911542]
[1769699432205,118.5185,118.32,118.18,29.76911542]
[1769699432206,118.5593,118.28,118.18,29.76911542]
[1769699432403,118.5329,118.31,118.18,29.76911542]
[1769699432805,118.5185,118.32,118.18,29.76911542]
[1769699433005,7.6205,118.3,118.18,29.76911542]
[1769699433911,126.1378,118.32,118.18,29.76911542]
[1769699434106,118.5508,118.29,118.18,29.76911542]
[1769699435216,118.5707,118.27,118.18,29.76911542]
[1769699435405,118.5802,118.26,118.18,29.76911542]
[1769699435605,118.5802,118.26,118.13,62.0]
[1769699435606,118.5896,118.25,118.14,29.76911542]
[1769699436105,126.2034,118.26,118.14,29.76911542]
[1769699436306,118.5999,118.24,118.14,29.76911542]
[1769699436507,118.5912,118.25,118.14,29.76911542]
[1769699436713,126.2151,118.25,118.14,29.76911542]
[1769699437110,118.5912,118.25,118.14,29.76911542]
[1769699437413,7.6251,118.23,118.14,29.76911542]
[1769699437712,118.5899,118.25,118.14,29.76911542]
[1769699437911,118.551,118.29,118.14,29.76911542]
[1769699438615,118.5794,118.26,118.14,29.76911542]
[1769699439110,118.5275,118.32,118.14,118.6979]
[1769699439318,118.5297,118.31,118.16,29.76911542]
[1769699439508,7.6219,118.28,118.16,29.76911542]
[1769699440112,118.5297,118.31,118.16,29.76911542]
[1769699440412,118.5297,118.31,118.17,29.76911542]
[1769699440610,118.5092,118.33,118.18,29.76911542]
[1769699440815,118.5211,118.32,118.18,29.76911542]
[1769699441212,118.5289,118.31,118.18,29.76911542]
[1769699441508,118.5092,118.33,118.18,29.76911542]
[1769699441714,125.32802824,118.33,118.18,29.76911542]
[1769699441909,6.81882824,118.34,118.2,29.76911542]
[1769699442112,125.31702824,118.35,118.2,29.76911542]
[1769699442301,118.5042,118.34,118.2,29.76911542]
[1769699442708,125.31702824,118.35,118.21,29.76911542]
[1769699443014,6.81882824,118.38,118.23,29.76911542]
[1769699443203,7.6167,118.36,118.23,37.39341542]
[1769699443405,6.81882824,118.35,118.24,29.76911542]
[1769699443609,118.4698,118.37,118.26,29.76911542]
[1769699444003,118.499,118.34,118.25,62.0]
[1769699444205,118.4911,118.35,118.18,29.76911542]
[1769699444206,118.5549,118.29,118.18,29.76911542]
[1769699444411,118.5585,118.28,118.18,29.76911542]
[1769699444614,6.81882824,118.27,118.18,29.76911542]
[1769699444908,125.37372824,118.29,118.18,29.76911542]
[1769699445315,118.5609,118.28,118.18,29.76911542]
[1769699445615,7.6231,118.26,118.18,29.76911542]
[1769699446013,7.6226,118.27,118.18,29.76911542]
[1769699446211,118.5549,118.29,118.18,29.76911542]
[1769699446412,6.81882824,118.27,118.14,29.76911542]
[1769699446618,14.44132824,118.27,118.15,29.76911542]
[1769699446915,6.81882824,118.3,118.17,29.76911542]
[1769699447121,14.43932824,118.3,118.18,29.76911542]
[1769699447314,6.81882824,118.33,118.19,29.76911542]
[1769699447614,118.522,118.32,118.19,29.76911542]
[1769699447819,118.5308,118.31,118.19,29.76911542]
[1769699448310,118.5903,118.25,118.15,29.76911542]
[1769699448511,118.5993,118.24,118.15,29.76911542]
[1769699448709,125.41812824,118.24,118.15,29.76911542]
[1769699449305,7.625,118.23,118.15,29.76911542]
[1769699449509,6.81882824,118.24,118.15,29.76911542]
[1769699450729,25.31,118.36,118.15,29.76911542]
[1769699450928,6.81882824,118.4,118.15,29.76911542]
[1769699450929,67.54,118.37,118.15,29.76911542]
[1769699451124,6.81882824,118.31,118.15,29.76911542]
[1769699452232,6.81882824,118.4,118.18,29.76911542]
[1769699452525,6.81882824,118.36,118.21,29.76911542]
[1769699453624,6.81882824,118.36,118.23,29.76911542]
[1769699453825,6.81882824,118.39,118.23,36.58794366]
[1769699454124,6.81882824,118.4,118.23,36.58794366]
[1769699454327,6.81882824,118.5,118.22,112.8]
[1769699454328,6.81882824,118.43,118.29,6.81882824]
[1769699454526,6.81882824,118.43,118.3,29.76911542]